fUSD/lending_fUSD_20250414
["ID","MTS","AMOUNT","RATE_DAILY","PERIOD"]
[357946638,1744608649512,-524.88,0.00019726,2]
[357946639,1744608649523,-911.41,0.00019726,2]
[357946640,1744608649533,-500.0,0.00019726,2]
[357946641,1744608649543,-500.0,0.00019726,2]
[357946642,1744608649553,-500.0,0.00019726,2]
[357946643,1744608649562,-500.0,0.00019726,2]
[357946644,1744608649572,-500.0,0.00019726,2]
[357946645,1744608649582,-500.0,0.00019726,2]
[357946646,1744608649592,-523.22012514,0.00019726,2]
[357946647,1744608649608,-520.44644082,0.00019726,2]
[357946648,1744608649617,-527.29652501,0.00019726,2]
[357946649,1744608649627,-500.0,0.00019726,2]
[357946650,1744608649638,-500.0,0.00019726,2]
[357946651,1744608649647,-302.45368677,0.00019726,2]
[357946652,1744608649657,-500.0,0.00019726,2]
[357946653,1744608649667,-194.49623255,0.00019726,2]
[357946654,1744608649677,-623.94551059,0.00019726,2]
[357946655,1744608649687,-500.0,0.00019726,2]
[357946656,1744608649696,-500.0,0.00019726,2]
[357946657,1744608649706,-580.09541451,0.00019726,2]
[357946658,1744608649716,-572.5727802,0.00019726,2]
[357946659,1744608649726,-500.0,0.00019726,2]
[357946660,1744608649735,-529.83633033,0.00019726,2]
[357946661,1744608649745,-500.0,0.00019726,2]
[357946662,1744608649755,-500.0,0.00019726,2]
[357946663,1744608649765,-517.23429497,0.00019726,2]
[357946664,1744608649775,-473.11574354,0.00019726,2]
[357946665,1744608649785,-500.0,0.00019726,2]
[357946666,1744608649795,-517.0519103,0.00019726,2]
[357946667,1744608649805,-500.0,0.00019726,2]
[357946668,1744608649815,-534.46667889,0.00019726,2]
[357946669,1744608649825,-193.14781079,0.00019726,2]
[357946670,1744608649835,-500.0,0.00019726,2]
[357946671,1744608649845,-582.1,0.00019726,2]
[357946672,1744608649855,-587.42,0.00019726,2]
[357946673,1744608649864,-500.0,0.00019726,2]
[357946674,1744608649873,-500.0,0.00019726,2]
[357946675,1744608649883,-424.65763599,0.00019726,2]
[357946676,1744608649894,-500.0,0.00019726,2]
[357946677,1744608649904,-1493.79,0.00019726,2]
[357946678,1744608649914,-500.0,0.00019726,2]
[357946679,1744608649923,-500.0,0.00019726,2]
[357946680,1744608649933,-515.65030817,0.00019726,2]
[357946681,1744608649943,-500.0,0.00019726,2]
[357946682,1744608649952,-500.0,0.00019726,2]
[357946683,1744608649964,-500.0,0.00019726,2]
[357946684,1744608649973,-500.0,0.00019726,2]
[357946685,1744608649983,-500.0,0.00019726,2]
[357946686,1744608649992,-500.0,0.00019726,2]
[357946687,1744608650002,-500.0,0.00019726,2]
[357946688,1744608650012,-619.17261643,0.00019726,2]
[357946689,1744608650022,-500.0,0.00019726,2]
[357946690,1744608650033,-509.8305648,0.00019726,2]
[357946691,1744608650042,-500.0,0.00019726,2]
[357946692,1744608650052,-500.0,0.00019726,2]
[357946693,1744608650062,-211.31262192,0.00019726,2]
[357946694,1744608650071,-500.0,0.00019726,2]
[357946695,1744608650080,-500.0,0.00019726,2]
[357946696,1744608650089,-500.0,0.00019726,2]
[357946697,1744608650100,-506.33306372,0.00019726,2]
[357946698,1744608650111,-500.0,0.00019726,2]
[357946699,1744608650121,-500.0,0.00019726,2]
[357946700,1744608650131,-500.0,0.00019726,2]
[357946701,1744608650141,-500.0,0.00019726,2]
[357946702,1744608650151,-507.8672443,0.00019726,2]
[357946703,1744608650160,-300.0,0.00019726,2]
[357946704,1744608650170,-500.0,0.00019726,2]
[357946705,1744608650180,-500.0,0.00019726,2]
[357946706,1744608650190,-500.0,0.00019726,2]
[357946707,1744608650200,-500.0,0.00019726,2]
[357946708,1744608650210,-500.0,0.00019726,2]
[357946709,1744608650219,-500.0,0.00019726,2]
[357946710,1744608650229,-630.72,0.00019726,2]
[357946711,1744608650238,-523.1149443,0.00019726,2]
[357946712,1744608650248,-500.0,0.00019726,2]
[357946713,1744608650258,-500.0,0.00019726,2]
[357946714,1744608650267,-500.0,0.00019726,2]
[357946715,1744608650277,-500.0,0.00019726,2]
[357946716,1744608650287,-502.01159203,0.00019726,2]
[357946717,1744608650297,-500.0,0.00019726,2]
[357946718,1744608650306,-500.0,0.00019726,2]
[357946719,1744608650316,-723.94,0.00019726,2]
[357946720,1744608650326,-500.0,0.00019726,2]
[357946721,1744608650335,-500.0,0.00019726,2]
[357946722,1744608650345,-500.0,0.00019726,2]
[357946723,1744608650354,-500.0,0.00019726,2]
[357946724,1744608650363,-500.0,0.00019726,2]
[357946725,1744608650373,-500.0,0.00019726,2]
[357946726,1744608650383,-518.35245013,0.00019726,2]
[357946727,1744608650393,-500.0,0.00019726,2]
[357946728,1744608650403,-500.0,0.00019726,2]
[357946729,1744608650413,-500.0,0.00019726,2]
[357946730,1744608650422,-500.0,0.00019726,2]
[357946731,1744608650431,-319.75781207,0.00019726,2]
[357946732,1744608650441,-509.59273958,0.00019726,2]
[357946733,1744608650452,-367.64,0.00019726,2]
[357946734,1744608650462,-500.0,0.00019726,2]
[357946735,1744608650472,-494.0,0.00019726,2]
[357946736,1744608650482,-500.0,0.00019726,2]
[357946737,1744608650494,-297.01664267,0.00019726,2]
[357946738,1744608650504,-500.0,0.00019726,2]
[357946739,1744608650514,-629.03,0.00019726,2]
[357946740,1744608650525,-500.0,0.00019726,2]
[357946741,1744608650534,-500.0,0.00019726,2]
[357946742,1744608650544,-500.0,0.00019726,2]
[357946743,1744608650554,-500.0,0.00019726,2]
[357946744,1744608650563,-500.0,0.00019726,2]
[357946745,1744608650574,-500.0,0.00019726,2]
[357946746,1744608650583,-517.48115027,0.00019726,2]
[357946747,1744608650591,-546.0031928,0.00019726,2]
[357946748,1744608650601,-568.71546063,0.00019726,2]
[357946749,1744608650610,-500.0,0.00019726,2]
[357946750,1744608650620,-517.1030279,0.00019726,2]
[357946751,1744608650629,-500.0,0.00019726,2]
[357946752,1744608650638,-500.0,0.00019726,2]
[357946753,1744608650647,-500.0,0.00019726,2]
[357946754,1744608650656,-500.0,0.00019726,2]
[357946755,1744608650665,-521.93,0.00019726,2]
[357946756,1744608650675,-477.1000145,0.00019726,2]
[357946757,1744608650684,-638.27,0.00019726,2]
[357946758,1744608650693,-500.0,0.00019726,2]
[357946759,1744608650702,-500.0,0.00019726,2]
[357946760,1744608650711,-471.77869149,0.00019726,2]
[357946761,1744608650721,-500.0,0.00019726,2]
[357946762,1744608650730,-500.0,0.00019726,2]
[357946763,1744608650740,-500.0,0.00019726,2]
[357946764,1744608650749,-500.0,0.00019726,2]
[357946765,1744608650759,-327.73801163,0.00019726,2]
[357946766,1744608650768,-500.0,0.00019726,2]
[357946767,1744608650777,-639.71,0.00019726,2]
[357946768,1744608650787,-500.0,0.00019726,2]
[357946769,1744608650796,-204.43175171,0.00019726,2]
[357946770,1744608650806,-500.0,0.00019726,2]
[357946771,1744608650816,-7841.34,0.00019726,2]
[357946772,1744608650826,-500.0,0.00019726,2]
[357946773,1744608650835,-245.61140775,0.00019726,2]
[357946774,1744608650844,-500.0,0.00019726,2]
[357946775,1744608650854,-532.26,0.00019726,2]
[357946776,1744608650863,-817.45,0.00019726,2]
[357946777,1744608650873,-500.0,0.00019726,2]
[357946778,1744608650882,-308.34143406,0.00019726,2]
[357946779,1744608650891,-500.0,0.00019726,2]
[357946780,1744608650900,-500.0,0.00019726,2]
[357946781,1744608650910,-4172.63183428,0.00019726,2]
[357946782,1744608650919,-448.46930531,0.00019728,2]
[357946783,1744608650929,-4172.63183428,0.0001973,2]
[357946784,1744608650938,-448.68914022,0.00019741,2]
[357946785,1744608650948,-250.0,0.00019747,2]
[357946786,1744608650958,-448.46930531,0.00019748,2]
[357946787,1744608650968,-500.0,0.00019764,2]
[357946788,1744608650977,-42277.15096687,0.00019765,2]
[357946789,1744608650987,-4172.63183428,0.00019771,2]
[357946790,1744608650996,-853.851,0.00019771,2]
[357946791,1744608651006,-501.87989479,0.00019773,2]
[357946792,1744608651015,-500.0,0.00019773,2]
[357946793,1744608651024,-629.34377803,0.00019788,2]
[357946794,1744608651034,-1027.201914,0.00019799,2]
[357946795,1744608651044,-1646.5752741,0.00019809,2]
[357946796,1744608651055,-263.35406416,0.00019809,2]
[357946797,1744608651065,-194.36210043,0.00019828,2]
[357946798,1744608651075,-387.32897571,0.0001983,2]
[357946799,1744608651084,-500.0,0.00019863,2]
[357946800,1744608651094,-500.0,0.00019863,2]
[357946801,1744608651104,-500.0,0.00019863,2]
[357946802,1744608651114,-300.96091185,0.00019863,2]
[357946803,1744608651123,-500.0,0.00019863,2]
[357946804,1744608651133,-500.0,0.00019863,2]
[357946805,1744608651142,-500.0,0.00019863,2]
[357946806,1744608651292,-500.0,0.00019863,2]
[357946807,1744608651303,-500.0,0.00019863,2]
[357946808,1744608651312,-500.0,0.00019863,2]
[357946809,1744608651322,-500.0,0.00019863,2]
[357946810,1744608651331,-500.0,0.00019863,2]
[357946811,1744608651342,-500.0,0.00019863,2]
[357946812,1744608651351,-500.0,0.00019863,2]
[357946813,1744608651361,-500.0,0.00019863,2]
[357946814,1744608651370,-500.0,0.00019863,2]
[357946815,1744608651380,-500.0,0.00019863,2]
[357946816,1744608651390,-500.0,0.00019863,2]
[357946817,1744608651399,-500.0,0.00019863,2]
[357946818,1744608651408,-500.0,0.00019863,2]
[357946819,1744608651418,-500.0,0.00019863,2]
[357946820,1744608651427,-400.41181936,0.00019863,2]
[357946821,1744608651436,-500.0,0.00019863,2]
[357946822,1744608651449,-500.0,0.00019899,2]
[357946823,1744608651459,-187.0,0.000199,2]
[357946824,1744608651469,-187.0,0.000199,2]
[357946825,1744608651479,-187.0,0.000199,2]
[357946826,1744608651489,-186.58,0.000199,2]
[357946827,1744608651505,-159.98608336,0.000199,2]
[357946828,1744608651517,-100857.30836725,0.000199,2]
[357946829,1744608651527,-216.46539829,0.000199,2]
[357946830,1744608651536,-1646.5752741,0.000199,2]
[357946831,1744608651546,-193.02091115,0.000199,2]
[357946832,1744608651555,-642.92068479,0.000199,2]
[357946833,1744608651564,-263.35406416,0.000199,2]
[357946834,1744608651573,-166.23,0.00019928,2]
[357946835,1744608651582,-160.3426233,0.00019986,2]
[357946836,1744608651593,-729.50053401,0.00019986,2]
[357946837,1744608651602,-23414.2755074,0.00019986,2]
[357946838,1744608651611,-670.4132314,0.00019986,2]
[357946839,1744608651621,-922.051103,0.00019986,2]
[357946840,1744608651630,-636.04368356,0.00019986,2]
[357946841,1744608651639,-1615.0178768,0.00019986,2]
[357946842,1744608651648,-194.12975249,0.00019988,2]
[357946843,1744608651658,-545.0,0.00019998,2]
[357946844,1744608651667,-1279.0,0.00019998,2]
[357946845,1744608651676,-1438.0,0.00019998,2]
[357946846,1744608651685,-907.0,0.00019998,2]
[357946847,1744608651694,-4148.0,0.00019998,2]
[357946848,1744608651704,-575.0,0.00019998,2]
[357946849,1744608651713,-2559.774,0.00019998,2]
[357946850,1744608651723,-152.0,0.00019998,2]
[357946851,1744608651732,-1328.0,0.00019998,2]
[357946852,1744608651741,-1287.0,0.00019998,2]
[357946853,1744608651751,-2047.0,0.00019998,2]
[357946854,1744608651761,-676.03545945,0.00019999,2]
[357946855,1744608651770,-300.0,0.00019999,2]
[357946856,1744608651780,-300.0,0.00019999,2]
[357946857,1744608651789,-2001.25512709,0.00019999,2]
[357946858,1744608651799,-500.0,0.00019999,2]
[357946859,1744608651808,-500.0,0.00019999,2]
[357946860,1744608651818,-595.54791246,0.00019999,2]
[357946861,1744608651828,-500.0520504,0.00019999,2]
[357946862,1744608651838,-92736.62594445,0.0002,2]
[357946863,1744608651847,-262.45863438,0.0002,2]
[357946864,1744608651857,-282825.45590831,0.0002,2]
[357946865,1744608651867,-300.54579653,0.0002,2]
[357946866,1744608651876,-456521.54959328,0.0002,2]
[357946867,1744608652061,-1503.91483761,0.0002,2]
[357946868,1744608652094,-8139.85439083,0.0002,2]
[357946869,1744608653623,-500.0,0.00019178,2]
[357946870,1744608653632,-261.44136041,0.0002,2]
[357946871,1744608787646,500.0,0.00017168,2]
[357946872,1744608798726,-600.0,0.00018264,2]
[357946873,1744608798753,-500.0,0.00018264,2]
[357946874,1744608812714,153.531756,0.0002,4]
[357946875,1744608813372,153.531756,0.0002,4]
[357946876,1744608813672,153.531756,0.0002,4]
[357946877,1744608933334,600.0,0.00018264,2]
[357946878,1744609169735,600.0,0.00018264,2]
[357946879,1744609233950,197.48874551,0.00018,2]
[357946880,1744609292977,810.06,0.00016484,2]
[357946881,1744609515082,228.36,0.00014682,2]
[357946882,1744609635838,1596.95634138,0.00014,2]
[357946904,1744609832091,-188.77284603,0.00018512,2]
[357946905,1744609832100,-250.0,0.00018543,2]
[357946906,1744609832109,-5658.74,0.00018575,2]
[357946907,1744609832120,-213.08491591,0.00018612,2]
[357946908,1744609832133,-465.39287963,0.00018612,2]
[357946909,1744609832148,-321.52220446,0.00018612,2]
[357946910,1744609832157,-1473.08,0.00018631,2]
[357946917,1744609832166,-132.13410994,0.00018748,2]
[357946920,1744609832368,-677.92589006,0.00018748,2]
[357946922,1744609832377,-166.25,0.00018927,2]
[357946924,1744609832387,-250.0,0.00018933,2]
[357946926,1744609832396,-188.77284602,0.00018978,2]
[357946928,1744609832406,-300.0,0.0001904,2]
[357946930,1744609832415,-66106.66999887,0.00019046,2]
[357946932,1744609832425,-833.66416218,0.00019078,2]
[357946933,1744609832434,-502.33840685,0.00019078,2]
[357946935,1744609832443,-1068.71904224,0.00019078,2]
[357946937,1744609832453,-1000.0,0.00019078,2]
[357946939,1744609832462,-500.0,0.00019078,2]
[357946941,1744609832471,-2500.0,0.00019078,2]
[357946943,1744609832481,-1115.51,0.00019168,2]
[357946945,1744609832490,-502.33840684,0.00019169,2]
[357946947,1744609832500,-1068.71904215,0.00019169,2]
[357946949,1744609832509,-513.37243021,0.00019173,2]
[357946951,1744609832519,-162.56,0.00019175,2]
[357946953,1744609832528,-500.0,0.00019178,2]
[357946955,1744609832538,-500.0,0.00019178,2]
[357946957,1744609832548,-500.0,0.00019178,2]
[357946959,1744609832558,-500.0,0.00019178,2]
[357946961,1744609832568,-500.0,0.00019178,2]
[357946963,1744609832578,-500.0,0.00019178,2]
[357946965,1744609832588,-500.0,0.00019178,2]
[357946967,1744609832598,-500.0,0.00019178,2]
[357946969,1744609832609,-500.0,0.00019178,2]
[357946971,1744609832621,-487.71429773,0.00019178,2]
[357946973,1744609832631,-500.0,0.00019178,2]
[357946975,1744609832640,-500.0,0.00019178,2]
[357946977,1744609832651,-500.0,0.00019178,2]
[357946979,1744609832660,-500.0,0.00019178,2]
[357946981,1744609832670,-500.0,0.00019178,2]
[357946983,1744609832679,-557.10227213,0.00019178,2]
[357946985,1744609832689,-500.0,0.00019178,2]
[357946987,1744609832699,-529.61315435,0.00019178,2]
[357946989,1744609832708,-500.0,0.00019178,2]
[357946991,1744609832718,-547.85418442,0.00019178,2]
[357946993,1744609832727,-500.0,0.00019178,2]
[357946995,1744609832737,-500.0,0.00019178,2]
[357946997,1744609832746,-529.12844889,0.00019178,2]
[357946999,1744609832755,-500.0,0.00019178,2]
[357947001,1744609832765,-500.0,0.00019178,2]
[357947003,1744609832774,-500.0,0.00019178,2]
[357947005,1744609832783,-573.46180377,0.00019178,2]
[357947007,1744609832792,-500.0,0.00019178,2]
[357947009,1744609832801,-500.0,0.00019178,2]
[357947011,1744609832810,-500.0,0.00019178,2]
[357947013,1744609832820,-500.0,0.00019178,2]
[357947015,1744609832830,-500.0,0.00019178,2]
[357947017,1744609832840,-500.0,0.00019178,2]
[357947019,1744609832851,-500.0,0.00019178,2]
[357947021,1744609832861,-500.0,0.00019178,2]
[357947023,1744609832872,-500.0,0.00019178,2]
[357947025,1744609832883,-500.0,0.00019178,2]
[357947027,1744609832892,-500.0,0.00019178,2]
[357947029,1744609832902,-535.78508018,0.00019178,2]
[357947031,1744609832911,-500.0,0.00019178,2]
[357947033,1744609832921,-607.03077977,0.00019178,2]
[357947035,1744609832930,-500.0,0.00019178,2]
[357947037,1744609832939,-528.62477856,0.00019178,2]
[357947039,1744609832948,-500.0,0.00019178,2]
[357947041,1744609832957,-500.0,0.00019178,2]
[357947043,1744609832967,-500.0,0.00019178,2]
[357947045,1744609832976,-500.0,0.00019178,2]
[357947047,1744609832986,-406.36147537,0.00019178,2]
[357947048,1744609832996,-500.0,0.00019178,2]
[357947050,1744609833005,-500.0,0.00019178,2]
[357947053,1744609833016,-500.0,0.00019178,2]
[357947055,1744609833028,-500.0,0.00019178,2]
[357947057,1744609833038,-525.52355279,0.00019178,2]
[357947059,1744609833048,-500.0,0.00019178,2]
[357947061,1744609833058,-392.69268879,0.00019178,2]
[357947063,1744609833069,-500.0,0.00019178,2]
[357947065,1744609833079,-500.0,0.00019178,2]
[357947067,1744609833090,-500.0,0.00019178,2]
[357947069,1744609833100,-511.45327904,0.00019178,2]
[357947071,1744609833111,-500.0,0.00019178,2]
[357947073,1744609833122,-500.0,0.00019178,2]
[357947075,1744609833132,-500.0,0.00019178,2]
[357947077,1744609833142,-500.0,0.00019178,2]
[357947079,1744609833152,-500.0,0.00019178,2]
[357947081,1744609833163,-513.71684481,0.00019178,2]
[357947083,1744609833173,-500.0,0.00019178,2]
[357947084,1744609833183,-245.69998324,0.00019178,2]
[357947086,1744609833193,-500.0,0.00019178,2]
[357947088,1744609833203,-351.03341558,0.00019178,2]
[357947089,1744609833213,-514.01648813,0.00019178,2]
[357947091,1744609833223,-500.0,0.00019178,2]
[357947093,1744609833233,-500.0,0.00019178,2]
[357947095,1744609833242,-565.11372132,0.00019178,2]
[357947096,1744609833252,-500.0,0.00019178,2]
[357947098,1744609833261,-500.0,0.00019178,2]
[357947100,1744609833271,-500.0,0.00019178,2]
[357947102,1744609833281,-500.0,0.00019178,2]
[357947104,1744609833290,-500.0,0.00019178,2]
[357947105,1744609833300,-500.0,0.00019178,2]
[357947107,1744609833310,-500.0,0.00019178,2]
[357947109,1744609833320,-246.25444172,0.00019178,2]
[357947111,1744609833330,-500.0,0.00019178,2]
[357947113,1744609833341,-500.0,0.00019178,2]
[357947115,1744609833351,-649.40984463,0.00019178,2]
[357947116,1744609833361,-500.0,0.00019178,2]
[357947118,1744609833371,-500.0,0.00019178,2]
[357947120,1744609833381,-500.0,0.00019178,2]
[357947122,1744609833391,-500.0,0.00019178,2]
[357947124,1744609833401,-500.0,0.00019178,2]
[357947125,1744609833410,-500.0,0.00019178,2]
[357947127,1744609833420,-500.0,0.00019178,2]
[357947129,1744609833430,-500.0,0.00019178,2]
[357947131,1744609833439,-509.39494092,0.00019178,2]
[357947133,1744609833449,-500.0,0.00019178,2]
[357947134,1744609833459,-500.0,0.00019178,2]
[357947136,1744609833469,-500.0,0.00019178,2]
[357947138,1744609833479,-500.0,0.00019178,2]
[357947140,1744609833488,-500.0,0.00019178,2]
[357947142,1744609833498,-502.26956535,0.00019178,2]
[357947143,1744609833508,-505.97578097,0.00019178,2]
[357947145,1744609833518,-500.0,0.00019178,2]
[357947147,1744609833527,-500.0,0.00019178,2]
[357947149,1744609833537,-219.90327185,0.00019178,2]
[357947151,1744609833546,-500.0,0.00019178,2]
[357947153,1744609833555,-500.0,0.00019178,2]
[357947155,1744609833565,-527.97,0.00019178,2]
[357947156,1744609833575,-500.0,0.00019178,2]
[357947158,1744609833584,-508.44176027,0.00019178,2]
[357947160,1744609833594,-500.0,0.00019178,2]
[357947162,1744609833603,-500.0,0.00019178,2]
[357947164,1744609833613,-500.0,0.00019178,2]
[357947166,1744609833624,-500.0,0.00019178,2]
[357947167,1744609833633,-500.0,0.00019178,2]
[357947169,1744609833643,-500.0,0.00019178,2]
[357947171,1744609833653,-509.92108347,0.00019178,2]
[357947173,1744609833663,-500.0,0.00019178,2]
[357947175,1744609833673,-500.0,0.00019178,2]
[357947177,1744609833682,-500.0,0.00019178,2]
[357947178,1744609833691,-500.0,0.00019178,2]
[357947180,1744609833700,-500.0,0.00019178,2]
[357947182,1744609833710,-500.0,0.00019178,2]
[357947184,1744609833719,-500.0,0.00019178,2]
[357947186,1744609833729,-500.0,0.00019178,2]
[357947188,1744609833739,-500.0,0.00019178,2]
[357947190,1744609833749,-500.0,0.00019178,2]
[357947192,1744609833759,-500.0,0.00019178,2]
[357947194,1744609833769,-565.25,0.00019178,2]
[357947195,1744609833779,-500.0,0.00019178,2]
[357947197,1744609833788,-500.0,0.00019178,2]
[357947199,1744609833798,-500.0,0.00019178,2]
[357947201,1744609833808,-500.0,0.00019178,2]
[357947203,1744609833818,-500.0,0.00019178,2]
[357947205,1744609833828,-500.0,0.00019178,2]
[357947207,1744609833840,-500.0,0.00019178,2]
[357947208,1744609833851,-500.0,0.00019178,2]
[357947210,1744609833861,-500.0,0.00019178,2]
[357947212,1744609833872,-500.0,0.00019178,2]
[357947214,1744609833883,-500.0,0.00019178,2]
[357947216,1744609833892,-517.42743097,0.00019178,2]
[357947218,1744609833901,-500.0,0.00019178,2]
[357947220,1744609833911,-500.0,0.00019178,2]
[357947221,1744609833921,-500.0,0.00019178,2]
[357947223,1744609833931,-534.8405281,0.00019178,2]
[357947225,1744609833940,-500.0,0.00019178,2]
[357947227,1744609833950,-500.0,0.00019178,2]
[357947229,1744609833959,-500.0,0.00019178,2]
[357947230,1744609833968,-194.4791002,0.00019178,2]
[357947232,1744609833980,-500.0,0.00019178,2]
[357947235,1744609833993,-500.0,0.00019178,2]
[357947237,1744609834008,-500.0,0.00019178,2]
[357947239,1744609834022,-500.0,0.00019178,2]
[357947241,1744609834033,-500.0,0.00019178,2]
[357947243,1744609834044,-506.1501981,0.00019178,2]
[357947246,1744609834057,-500.0,0.00019178,2]
[357947248,1744609834070,-500.0,0.00019178,2]
[357947250,1744609834082,-500.0,0.00019178,2]
[357947252,1744609834094,-500.0,0.00019178,2]
[357947254,1744609834106,-500.0,0.00019178,2]
[357947256,1744609834119,-500.0,0.00019178,2]
[357947258,1744609834132,-500.0,0.00019178,2]
[357947260,1744609834143,-500.0,0.00019178,2]
[357947262,1744609834155,-500.0,0.00019178,2]
[357947264,1744609834168,-355.32396241,0.00019178,2]
[357947266,1744609834178,-363.99468807,0.00019178,2]
[357947268,1744609834190,-500.0,0.00019178,2]
[357947270,1744609834203,-434.23871031,0.00019178,2]
[357947272,1744609834215,-500.0,0.00019178,2]
[357947275,1744609834227,-500.0,0.00019178,2]
[357947277,1744609834242,-500.0,0.00019178,2]
[357947279,1744609834254,-150.1,0.00019178,2]
[357947281,1744609834269,-500.0,0.00019178,2]
[357947283,1744609834282,-500.0,0.00019178,2]
[357947286,1744609834295,-500.0,0.00019178,2]
[357947288,1744609834307,-500.0,0.00019178,2]
[357947290,1744609834319,-500.0,0.00019178,2]
[357947292,1744609834333,-500.0,0.00019178,2]
[357947294,1744609834345,-547.19,0.00019178,2]
[357947297,1744609834358,-500.0,0.00019178,2]
[357947299,1744609834371,-500.0,0.00019178,2]
[357947301,1744609834383,-554.58146993,0.00019178,2]
[357947303,1744609834394,-500.0,0.00019178,2]
[357947305,1744609834408,-514.75720056,0.00019178,2]
[357947307,1744609834421,-500.0,0.00019178,2]
[357947310,1744609834435,-331.40789487,0.00019178,2]
[357947312,1744609834447,-302.2,0.00019178,2]
[357947314,1744609834459,-500.0,0.00019178,2]
[357947316,1744609834471,-500.0,0.00019178,2]
[357947318,1744609834483,-542.07956061,0.00019178,2]
[357947320,1744609834494,-500.0,0.00019178,2]
[357947322,1744609834504,-500.0,0.00019178,2]
[357947324,1744609834517,-500.0,0.00019178,2]
[357947326,1744609834530,-500.0,0.00019178,2]
[357947329,1744609834545,-500.0,0.00019178,2]
[357947331,1744609834559,-500.0,0.00019178,2]
[357947333,1744609834570,-500.0,0.00019178,2]
[357947335,1744609834581,-500.0,0.00019178,2]
[357947337,1744609834594,-500.0,0.00019178,2]
[357947338,1744609834606,-500.0,0.00019178,2]
[357947339,1744609834620,-500.0,0.00019178,2]
[357947340,1744609834632,-500.0,0.00019178,2]
[357947342,1744609834645,-500.0,0.00019178,2]
[357947344,1744609834660,-500.0,0.00019178,2]
[357947345,1744609834672,-500.0,0.00019178,2]
[357947346,1744609834682,-504.31341957,0.00019178,2]
[357947347,1744609834693,-500.0,0.00019178,2]
[357947348,1744609834706,-500.0,0.00019178,2]
[357947350,1744609834717,-500.0,0.00019178,2]
[357947352,1744609834729,-500.0,0.00019178,2]
[357947354,1744609834742,-500.0,0.00019178,2]
[357947356,1744609834753,-500.0,0.00019178,2]
[357947358,1744609834765,-500.0,0.00019178,2]
[357947360,1744609834777,-500.0,0.00019178,2]
[357947362,1744609834789,-500.0,0.00019178,2]
[357947364,1744609834800,-500.0,0.00019178,2]
[357947367,1744609834816,-541.03695301,0.00019178,2]
[357947369,1744609834827,-502.17278543,0.00019178,2]
[357947371,1744609834839,-500.0,0.00019178,2]
[357947373,1744609834854,-619.17261643,0.00019178,2]
[357947374,1744609834866,-500.0,0.00019178,2]
[357947375,1744609834880,-500.0,0.00019178,2]
[357947376,1744609834891,-424.65763599,0.00019178,2]
[357947377,1744609834902,-500.0,0.00019178,2]
[357947378,1744609834915,-509.8305648,0.00019178,2]
[357947379,1744609834928,-500.0,0.00019178,2]
[357947380,1744609834939,-499.99818399,0.00019178,2]
[357947381,1744609834951,-500.0,0.00019178,2]
[357947382,1744609834963,-515.65030817,0.00019178,2]
[357947383,1744609834979,-500.0,0.00019178,2]
[357947384,1744609834992,-500.0,0.00019178,2]
[357947385,1744609835004,-500.0,0.00019178,2]